bitfinex/quotes_SOLUSD_20250717
["timestamp","ask_amount","ask_price","bid_price","bid_amount"]
[1752782737228,42.50740506,171.83,171.71,38.98372106]
[1752782737426,15.84740506,171.75,171.71,39.64372106]
[1752782737613,0.72784441,171.74,171.72,0.66]
[1752782737815,0.72767493,171.78,171.73,0.66]
[1752782738131,0.72767493,171.78,171.75,16.78468397]
[1752782738428,0.72767493,171.78,171.74,0.66]
[1752782738429,15.84740506,171.76,171.71,0.66]
[1752782738729,0.72767493,171.78,171.66,49.51648607]
[1752782738730,15.84740506,171.73,171.68,15.84740506]
[1752782738937,0.72792918,171.72,171.69,33.8]
[1752782739127,15.84740506,171.73,171.7,17.44468397]
[1752782739319,0.72775966,171.76,171.67,33.14]
[1752782739320,15.84740506,171.71,171.67,33.14]
[1752782739519,1.38775966,171.76,171.68,15.84740506]
[1752782739723,15.84740506,171.75,171.7,32.63208903]
[1752782739919,0.72784441,171.74,171.72,16.78468397]
[1752782740225,0.72784441,171.74,171.67,53.5276167]
[1752782740226,15.84740506,171.78,171.74,16.78468397]
[1752782740432,0.72750552,171.82,171.76,32.63208903]
[1752782740614,0.66,171.85,171.78,16.78468397]
[1752782740931,0.72742085,171.84,171.78,32.63208903]
[1752782741111,0.72742085,171.84,171.79,33.12]
[1752782741312,0.72742085,171.84,171.7,26.0]
[1752782741313,15.84740506,171.8,171.78,49.90468397]
[1752782741512,15.84740506,171.81,171.78,55.72608343]
[1752782741719,0.72759022,171.8,171.78,55.72608343]
[1752782741921,15.84740506,171.82,171.78,23.26608343]
[1752782742128,0.72754787,171.81,171.79,33.76]
[1752782742428,0.72737852,171.85,171.8,33.29208903]
[1752782742631,0.7273362,171.86,171.83,16.78468397]
[1752782742834,0.7273362,171.86,171.84,33.72]
[1752782743207,15.84740506,171.87,171.84,33.72]
[1752782743208,15.84740506,171.88,171.84,33.72]
[1752782743434,0.72729388,171.87,171.84,33.72]
[1752782743627,0.72729388,171.87,171.85,5.81902822]
[1752782744128,0.72712465,171.91,171.86,16.78468397]
[1752782744327,8.189,171.98,171.88,16.78468397]
[1752782744328,15.84740506,171.92,171.88,16.78468397]
[1752782744535,15.84740506,171.93,171.89,33.04]
[1752782744839,16.57448742,171.92,171.89,33.02]
[1752782745140,16.57436057,171.95,171.9,16.78468397]
[1752782745314,15.84740506,171.93,171.91,33.0]
[1752782745643,0.72708236,171.92,171.91,33.0]
[1752782746243,4.38443373,171.92,171.88,5.81801256]
[1752782746442,0.72708236,171.92,171.91,32.98]
[1752782746610,3.6577058,171.92,171.91,32.98]
[1752782746805,0.72704007,171.93,171.91,32.98]
[1752782747329,0.72691323,171.96,171.91,0.66]
[1752782747555,0.72691323,171.96,171.92,49.46740506]
[1752782747715,0.72691323,171.96,171.93,5.81632059]
[1752782748040,16.57431829,171.96,171.93,5.81632059]
[1752782748211,0.72691323,171.96,171.93,5.81632059]
[1752782748411,0.72674418,172.0,171.93,5.81632059]
[1752782748612,3.659477,171.99,171.94,0.66]
[1752782748907,4.3863057,171.98,171.94,15.84740506]
[1752782749112,0.7268287,171.98,171.94,0.66]
[1752782749618,16.57423376,171.98,171.95,32.9]
[1752782749939,16.57423376,171.98,171.9,14.54308554]
[1752782749940,15.84740506,171.96,171.9,22.60180766]
[1752782750139,4.31809367,171.97,171.91,48.74740506]
[1752782750140,0.72695551,171.95,171.91,48.74740506]
[1752782750430,0.72691323,171.96,171.92,0.66]
[1752782750740,15.84740506,171.98,171.93,33.29208903]
[1752782750924,0.72665969,172.02,171.93,17.44468397]
[1752782751124,15.84740506,171.99,171.94,16.50740506]
[1752782751432,0.66,172.03,171.91,32.9]
[1752782751433,15.84740506,171.96,171.92,16.78468397]
[1752782751631,15.84740506,171.95,171.94,32.9]
[1752782751812,15.84740506,171.95,171.92,16.78468397]
[1752782751813,26.0,171.92,171.85,0.66]
[1752782752014,26.72712465,171.91,171.82,0.66]
[1752782752321,15.84740506,171.9,171.84,15.84740506]
[1752782752513,6.0967,171.97,171.87,15.84740506]
[1752782752514,26.72699778,171.94,171.87,15.84740506]
[1752782752719,15.84740506,171.93,171.88,49.38740506]
[1752782752937,26.72699778,171.94,171.88,33.54]
[1752782752938,0.72708236,171.92,171.88,33.54]
[1752782753115,0.72708236,171.92,171.81,49.47325533]
[1752782753116,15.84740506,171.9,171.81,20.37134043]
[1752782753321,15.84740506,171.85,171.81,6.48038298]
[1752782753529,15.84740506,171.86,171.82,33.54]
[1752782753735,0.72720926,171.89,171.83,0.66]
[1752782753912,15.84740506,171.86,171.83,6.47959596]
[1752782755519,15.84740506,171.87,171.84,16.78468397]
[1752782755735,0.72712465,171.91,171.86,5.81868963]
[1752782755943,26.0,171.9,171.87,32.84]
[1752782756129,41.84740506,171.9,171.87,32.84]
[1752782756332,41.84740506,171.9,171.87,33.5]
[1752782756530,15.84740506,171.89,171.87,32.84]
[1752782756724,15.84740506,171.91,171.87,32.84]
[1752782757334,0.72704007,171.93,171.86,5.81868963]
[1752782757542,15.84740506,171.89,171.87,32.82]
[1752782757742,15.84740506,171.88,171.87,32.82]
[1752782757936,15.84740506,171.88,171.84,16.78468397]
[1752782758134,0.72720926,171.89,171.87,32.8]
[1752782758339,15.84740506,171.88,171.84,23.26401718]
[1752782758537,15.84740506,171.86,171.82,0.72]
[1752782758727,15.84740506,171.86,171.85,32.76]
[1752782758922,0.72729388,171.87,171.82,0.06]
[1752782759121,15.84740506,171.85,171.83,32.76]
[1752782759327,15.84740506,171.85,171.82,23.32451802]
[1752782759328,6.54493722,171.89,171.82,5.87983405]
[1752782759618,6.54493722,171.89,171.84,32.74]
[1752782759940,31.81844482,171.87,171.85,32.74]
[1752782760135,4.05950455,171.86,171.85,32.74]
[1752782760440,4.05950455,171.86,171.85,66.03208903]
[1752782760845,4.05950455,171.86,171.82,6.54001133]
[1752782761022,0.7273362,171.86,171.83,32.72]
[1752782761222,15.84740506,171.87,171.83,32.72]
[1752782761435,0.72716695,171.9,171.85,32.63208903]
[1752782761648,0.72704007,171.93,171.87,16.78468397]
[1752782761843,15.84740506,171.92,171.88,32.72]
[1752782762033,15.84740506,171.89,171.86,5.81868787]
[1752782762228,26.72699778,171.94,171.87,33.38]
[1752782762565,15.84740506,171.95,171.9,15.84740506]
[1752782762739,0.7268287,171.98,171.94,15.84740506]
[1752782762926,4.80994139,171.99,171.95,49.23740506]
[1752782763122,4.80994139,171.99,171.95,48.54740506]
[1752782763327,0.72678644,171.99,171.96,0.69]
[1752782763635,0.72678644,171.99,171.95,48.54740506]
[1752782763829,8.50072692,172.03,171.97,6.50464158]
[1752782764035,15.84740506,172.0,171.97,0.69]
[1752782764239,15.84740506,171.98,171.94,17.47468397]
[1752782764439,4.41014333,172.01,171.97,15.84740506]
[1752782764628,16.57410699,172.01,171.98,0.69]
[1752782764827,16.57410699,172.01,171.99,32.66]
[1752782765229,3.6834414,172.02,171.99,48.50740506]
[1752782765431,3.6834414,172.01,171.99,32.66]
[1752782765749,3.68938335,172.04,172.0,33.90343984]
[1752782765932,12.01359401,172.13,172.0,33.90343984]
[1752782765933,5.29836975,172.12,172.04,16.78468397]
[1752782766126,0.7262375,172.12,172.11,15.84740506]
[1752782766325,4.77213225,172.14,172.11,49.15740506]
[1752782766524,4.57213225,172.13,172.12,16.53740506]
[1752782766742,4.81847136,172.14,172.12,6.72813455]
[1752782766937,0.2,172.14,172.13,16.53740506]
[1752782767455,0.2,172.14,172.13,0.69]
[1752782767632,4.82560489,172.14,172.13,0.69]
[1752782767940,0.2,172.14,172.11,38.43020243]
[1752782768144,30.0,172.13,172.11,0.68]
[1752782768338,30.0,172.13,172.12,32.68]
[1752782768540,30.0,172.13,172.12,49.21740506]
[1752782768843,30.0,172.13,172.12,33.37]
[1752782769248,30.0,172.13,172.12,32.68]
[1752782769436,45.84740506,172.13,172.09,0.69]
[1752782769634,15.84740506,172.11,172.1,32.12]
[1752782769841,30.0,172.11,172.1,32.62]
[1752782770242,30.0,172.11,172.1,38.43057524]
[1752782770427,30.0,172.11,172.1,6.50057524]
[1752782770628,30.0,172.11,172.1,54.9679803]
[1752782770842,0.66,172.13,172.1,32.62]
[1752782771045,15.84740506,172.11,172.1,32.62]
[1752782771545,15.84740506,172.12,172.1,32.62]
[1752782771748,21.35902474,172.11,172.04,0.69]
[1752782771931,15.84740506,172.09,172.06,5.81192607]
[1752782772133,15.84740506,172.08,172.05,38.51220966]
[1752782772347,15.84740506,172.08,172.05,38.51223746]
[1752782772532,0.66,172.12,172.05,5.81223746]
[1752782772533,1.3862375,172.12,172.05,5.81223746]
[1752782772738,15.84740506,172.08,172.04,5.81253322]
[1752782772945,15.84740506,172.08,171.99,32.92933723]
[1752782772946,15.84740506,172.06,172.0,21.66135854]
[1752782773144,15.84740506,172.02,171.98,5.81443847]
[1752782773458,0.72653298,172.05,171.99,32.66]
[1752782773755,4.12509114,172.04,171.99,32.66]
[1752782773949,15.84740506,172.0,171.94,6.50598231]
[1752782774130,15.84740506,171.98,171.95,32.68]
[1752782774451,15.84740506,171.96,171.9,0.69]
[1752782774657,15.84740506,171.96,171.91,15.84740506]
[1752782774854,15.84740506,171.98,171.93,15.84740506]
[1752782775036,15.84740506,171.95,171.91,0.1]
[1752782775556,15.84740506,171.94,171.92,32.66]
[1752782775856,15.84740506,171.95,171.92,32.66]
[1752782776650,15.84740506,171.98,171.93,0.69]
[1752782776952,15.84740506,171.97,171.93,0.69]
[1752782777454,15.84740506,171.97,171.89,5.81767409]
[1752782777455,15.84740506,171.94,171.89,5.81767409]
[1752782777750,15.84740506,171.94,171.87,25.12]
[1752782777751,15.84740506,171.91,171.9,32.7]
[1752782778056,0.72704007,171.93,171.9,38.51730668]
[1752782778259,0.72691323,171.96,171.9,54.36471174]
[1752782778431,15.84740506,171.95,171.9,54.36471174]
[1752782779150,15.84740506,171.95,171.91,0.69]
[1752782779334,15.84740506,171.94,171.92,32.66]
[1752782779536,15.84740506,171.95,171.92,32.66]
[1752782779753,15.84740506,171.97,171.92,32.66]
[1752782780072,42.57427602,171.97,171.93,5.81632059]
[1752782780227,15.84740506,171.96,171.93,5.81632059]
[1752782780627,15.84740506,171.96,171.92,33.35]
[1752782780838,26.72687096,171.97,171.89,0.69]
[1752782780839,15.84740506,171.94,171.89,0.69]
[1752782781047,1.38695551,171.95,171.88,5.81801256]
[1752782781348,15.84740506,171.93,171.9,32.64]
[1752782781549,1.38695551,171.95,171.9,32.64]
[1752782781859,15.84740506,171.94,171.9,32.64]
[1752782782057,15.84740506,171.93,171.9,38.45725148]
[1752782782358,15.84740506,171.93,171.9,32.64]
[1752782782561,15.84740506,171.93,171.9,38.4572464]
[1752782783059,15.84740506,171.95,171.9,54.99465146]
[1752782783355,15.84740506,171.91,171.87,0.06]
[1752782783655,0.72716695,171.9,171.88,32.62]
[1752782783837,0.66,171.94,171.87,0.06]
[1752782783838,15.84740506,171.89,171.87,0.06]
[1752782784155,15.84740506,171.9,171.88,32.62]
[1752782784858,15.84740506,171.89,171.88,32.62]
[1752782785344,15.84740506,171.92,171.88,38.57801256]
[1752782785856,15.84740506,171.93,171.89,0.16]
[1752782786047,0.66,172.0,171.9,21.73474072]
[1752782786237,15.84740506,171.98,171.92,15.84740506]
[1752782786431,15.84740506,171.98,171.91,32.56]
[1752782786432,15.84740506,172.0,171.94,15.84740506]
[1752782786656,15.84740506,172.0,171.93,0.13]
[1752782786657,15.84740506,171.98,171.95,32.56]
[1752782787035,15.84740506,171.99,171.95,32.73]
[1752782787344,16.5741915,171.99,171.95,32.56]
[1752782787535,5.81319643,172.03,171.95,32.56]
[1752782787536,15.84740506,171.96,171.95,32.56]
[1752782788141,15.84740506,171.97,171.95,32.56]
[1752782788857,0.72678644,171.99,171.95,38.37563798]
[1752782789057,26.0,172.0,171.95,38.37563798]
[1752782789058,15.84740506,172.04,171.98,15.84740506]
[1752782789349,15.84740506,172.06,172.01,15.84740506]
[1752782789656,15.84740506,172.02,171.98,0.69]
[1752782789849,15.84740506,172.03,171.99,32.48]
[1752782790157,16.57393804,172.05,172.01,5.81361548]
[1752782790358,16.57393804,172.05,172.02,32.48]
[1752782790653,0.03,172.07,172.02,32.48]
[1752782790854,0.03,172.07,172.03,16.53740506]
[1752782791153,0.03,172.07,172.04,15.84740506]
[1752782791340,0.03,172.07,172.05,32.52]
[1752782791541,0.03,172.07,172.05,49.05740506]
[1752782791747,0.03,172.07,172.06,16.53740506]
[1752782792142,0.03,172.07,172.06,22.34933113]
[1752782793757,0.03,172.07,172.04,5.81260172]
[1752782793939,17.02740506,172.07,172.04,5.81260172]
[1752782794137,16.37740506,172.07,172.05,32.46]
[1752782794337,0.53,172.07,172.05,38.27219497]
[1752782794542,0.53,172.07,172.06,33.16]
[1752782794753,0.53,172.07,172.06,32.46]
[1752782795153,0.53,172.07,172.06,33.14]
[1752782796336,0.53,172.07,172.06,32.44]
[1752782796539,0.53,172.07,172.03,22.36027867]
[1752782796760,0.53,172.07,172.04,32.4]
[1752782796761,15.84740506,172.06,172.04,32.4]
[1752782796963,15.84740506,172.06,172.05,32.4]
[1752782798145,16.49740506,172.06,172.05,32.4]
[1752782798339,16.49740506,172.06,171.98,1.602]
[1752782798340,22.30933113,172.06,171.98,1.602]
[1752782798540,15.84740506,172.0,171.95,15.84740506]
[1752782798744,15.84740506,172.0,171.96,32.36]
[1752782798954,1.37678644,171.99,171.92,1.602]
[1752782799144,1.37678644,171.99,171.93,32.36]
[1752782799338,15.84740506,171.97,171.93,32.36]
[1752782799543,15.84740506,171.97,171.93,33.06]
[1752782799958,15.84740506,171.96,171.9,0.7]
[1752782800162,15.84740506,171.96,171.91,15.84740506]
[1752782800365,15.84740506,171.96,171.92,5.81665891]
[1752782800569,15.84740506,171.96,171.92,6.51665891]
[1752782800765,7.1911151,171.99,171.92,6.51665891]
[1752782800766,15.84740506,171.97,171.92,22.36406397]
[1752782800960,15.84740506,171.99,171.94,15.84740506]
[1752782801162,15.84740506,171.99,171.95,32.34]
[1752782801346,15.84740506,171.99,171.94,16.54740506]
[1752782801664,15.84740506,171.99,171.95,32.34]
[1752782801852,15.84740506,172.0,171.95,48.88740506]
[1752782802055,26.0,172.01,171.96,32.34]
[1752782802251,0.72649075,172.06,171.98,15.84740506]
[1752782802458,15.84740506,172.04,171.99,54.00169658]
[1752782802650,15.84740506,172.04,171.99,54.70169658]
[1752782802651,41.84740506,172.04,171.99,54.70169658]
[1752782802846,15.84740506,172.03,171.99,32.34]
[1752782803053,17.22406475,172.02,171.99,32.34]
[1752782803462,15.84740506,172.0,171.99,32.34]
[1752782803663,0.65,172.01,171.99,32.34]
[1752782803854,16.49740506,172.01,171.99,32.34]
[1752782804250,1.37661745,172.03,171.99,32.34]
[1752782804450,15.84740506,172.01,171.99,32.34]
[1752782804874,1.37661745,172.03,171.99,32.34]
[1752782805066,15.84740506,172.02,171.99,32.34]
[1752782805757,15.84740506,172.0,171.99,32.34]
[1752782805966,16.49740506,172.0,171.98,32.34]
[1752782806271,15.84740506,171.99,171.98,32.34]
[1752782806456,16.49740506,172.0,171.98,32.34]
[1752782806770,16.5741915,171.99,171.98,32.34]
[1752782806980,17.2241915,171.99,171.98,32.34]
[1752782807485,17.2241915,171.99,171.89,31.32840202]
[1752782807651,1.37678644,171.99,171.91,0.7]
[1752782807853,15.84740506,171.94,171.88,6.4787]
[1752782808171,15.84740506,171.89,171.87,0.06]
[1752782808549,0.65,171.91,171.87,15.90740506]
[1752782808951,26.0,171.93,171.9,15.84740506]
[1752782809366,0.72699778,171.94,171.91,15.84740506]
[1752782809576,0.72699778,171.94,171.92,32.34]
[1752782809767,26.65,171.97,171.93,15.84740506]
[1752782809768,0.65,171.97,171.93,15.84740506]
[1752782810082,16.57423376,171.98,171.93,15.84740506]
[1752782810253,17.22423376,171.98,171.93,15.84740506]
[1752782810448,7.19158256,171.98,171.94,15.84740506]
[1752782810871,1.3768287,171.98,171.94,15.84740506]
[1752782811176,0.72665969,172.02,171.97,15.84740506]
[1752782811387,0.72657521,172.04,172.01,15.84740506]
[1752782811583,5.81217697,172.06,172.02,48.18740506]
[1752782811584,0.72653298,172.05,172.02,48.18740506]
[1752782811893,1.37653298,172.05,172.02,32.34]
[1752782812094,0.65,172.04,172.02,32.34]
[1752782812394,1.37661745,172.03,172.02,32.34]
[1752782812710,0.03,172.07,172.02,54.00068258]
[1752782812998,0.72649075,172.06,172.03,15.84740506]
[1752782813877,0.72653298,172.05,172.02,32.34]
[1752782814074,1.22653298,172.05,172.02,48.18740506]
[1752782814262,1.87653298,172.05,172.02,48.18740506]
[1752782814459,0.5,172.05,172.03,15.84740506]
[1752782814876,0.5,172.05,172.02,48.18740506]
[1752782815469,0.5,172.05,172.03,32.34]
[1752782816903,16.57398027,172.04,171.95,0.7]
[1752782817068,15.84740506,172.02,171.97,15.84740506]
[1752782817379,0.72670193,172.01,171.97,15.84740506]
[1752782817595,0.72670193,172.01,171.98,15.84740506]
[1752782817768,0.72665969,172.02,171.99,48.18740506]
[1752782818167,0.72665969,172.02,171.99,32.34]
[1752782818767,1.37665969,172.02,171.99,32.34]
[1752782818971,23.03750005,172.02,171.99,32.34]
[1752782819169,0.65,172.01,171.99,32.34]
[1752782819465,0.72674418,172.0,171.97,15.84740506]
[1752782819685,0.72674418,172.0,171.98,32.34]
[1752782820006,0.72674418,172.0,171.96,15.84740506]
[1752782820292,16.49740506,171.99,171.97,32.34]
[1752782820487,16.49740506,171.99,171.91,0.7]
[1752782820488,17.22423376,171.98,171.91,0.7]
[1752782820699,15.84740506,171.97,171.92,32.34]
[1752782820990,15.84740506,171.97,171.88,6.7333]
[1752782820991,15.84740506,171.94,171.88,22.36538807]
[1752782821166,15.84740506,171.9,171.87,0.06]
[1752782821370,0.72720926,171.89,171.87,32.4]
[1752782821564,0.65,171.89,171.87,32.4]
[1752782821767,0.72708236,171.92,171.87,48.94740506]
[1752782821967,0.72704007,171.93,171.9,15.84740506]
[1752782822184,26.72691323,171.96,171.91,48.18740506]
[1752782822384,0.65,172.03,171.95,15.84740506]
[1752782822693,0.72665969,172.02,171.91,0.7]
[1752782822894,26.0,172.0,171.93,15.84740506]
[1752782823193,0.72678644,171.99,171.95,15.84740506]
[1752782823374,0.72678644,171.99,171.96,48.18740506]
[1752782823773,0.72678644,171.99,171.93,0.67]
[1752782824080,15.84740506,171.98,171.94,32.34]
[1752782824376,1.42687096,171.97,171.94,32.34]
[1752782824571,0.72687096,171.97,171.95,15.84740506]
[1752782824794,0.72678644,171.99,171.95,15.84740506]
[1752782825004,1.42678644,171.99,171.95,15.84740506]
[1752782825297,16.54740506,171.98,171.94,32.34]
[1752782825467,15.84740506,171.95,171.91,0.06]
[1752782825675,15.84740506,171.95,171.92,32.34]
[1752782825676,0.72699778,171.94,171.92,32.34]
[1752782825868,26.0,171.92,171.91,0.06]
[1752782826074,43.27448742,171.92,171.91,0.06]
[1752782826695,0.72699778,171.94,171.91,0.06]
[1752782826871,16.57427602,171.97,171.92,15.84740506]
[1752782827071,48.36277667,171.96,171.93,32.34]
[1752782827369,17.27436057,171.95,171.93,32.34]
[1752782827572,1.42695551,171.95,171.93,32.34]
[1752782827773,0.72678644,171.99,171.94,15.84740506]
[1752782828002,15.84740506,171.95,171.93,0.67]
[1752782828171,0.72699778,171.94,171.93,32.34]
[1752782829078,0.72695551,171.95,171.93,32.34]
[1752782829393,26.7268287,171.98,171.94,15.84740506]
[1752782829574,26.7268287,171.98,171.95,15.84740506]
[1752782829988,0.7268287,171.98,171.95,15.84740506]
[1752782830388,26.0,172.0,171.97,15.84740506]
[1752782830695,0.72670193,172.01,171.98,32.34]
[1752782830998,0.72657521,172.04,172.01,5.81361548]
[1752782831175,0.75644853,172.07,172.02,33.01]
[1752782831373,0.75644853,172.07,172.04,15.84740506]
[1752782831793,0.75644853,172.07,172.05,15.84740506]
[1752782832000,0.75644853,172.07,172.06,48.18740506]
[1752782832001,0.03,172.07,172.06,48.18740506]
[1752782832167,0.03,172.07,172.06,48.85740506]
[1752782832591,0.03,172.07,172.06,32.34]
[1752782832796,0.03,172.07,172.06,48.18740506]
[1752782833290,0.03,172.07,172.06,54.66933113]
[1752782834506,0.03,172.1,172.06,69.77996492]
[1752782834675,0.03,172.1,172.09,15.84740506]
[1752782834995,0.2,172.14,172.09,48.16740506]
[1752782835167,0.2,172.14,172.13,15.84740506]
[1752782835367,0.2,172.14,172.13,48.16740506]
[1752782835679,0.03,172.17,172.13,48.83740506]
[1752782835984,0.03,172.17,172.16,15.84740506]
[1752782836186,0.03,172.17,172.16,48.16740506]
[1752782836384,0.03,172.17,172.16,48.83740506]
[1752782836985,15.84740506,172.26,172.21,15.84740506]
[1752782837185,26.0,172.24,172.22,32.32]
[1752782837389,0.14636388,172.23,172.22,32.32]
[1752782837693,0.14636388,172.25,172.22,32.32]
[1752782837891,0.14636388,172.25,172.24,15.84740506]
[1752782838096,6.4715,172.34,172.24,15.84740506]
[1752782838097,0.14636388,172.27,172.24,15.84740506]
[1752782838277,0.14636388,172.27,172.25,48.14740506]
[1752782838605,6.4715,172.34,172.25,48.14740506]
[1752782838606,0.14636388,172.29,172.26,15.84740506]
[1752782839082,26.0,172.31,172.27,22.32224629]
[1752782839083,0.14636388,172.31,172.27,22.32224629]
[1752782839896,15.99376894,172.3,172.27,32.3]
[1752782840080,0.14636388,172.3,172.27,32.3]
[1752782841189,0.14636388,172.3,172.27,48.14740506]
[1752782841371,0.14636388,172.31,172.27,48.14740506]
[1752782841575,15.99376894,172.31,172.22,0.67]
[1752782841777,15.84740506,172.3,172.22,0.67]
[1752782841974,0.14636388,172.27,172.23,32.28]
[1752782842193,0.14636388,172.27,172.18,0.67]
[1752782842380,15.84740506,172.24,172.19,32.28]
[1752782842576,0.14636388,172.23,172.19,48.12740506]
[1752782842778,0.14636388,172.23,172.19,48.79740506]
[1752782842975,0.14636388,172.25,172.22,15.84740506]
[1752782843278,15.84740506,172.27,172.24,15.84740506]
[1752782843279,0.14636388,172.27,172.24,15.84740506]
[1752782843505,0.2,172.28,172.25,48.12740506]
[1752782843692,0.2,172.28,172.25,48.79740506]
[1752782843898,15.99376894,172.27,172.26,32.28]
[1752782844089,0.2,172.28,172.26,32.28]
[1752782844290,0.2,172.28,172.27,16.51740506]
[1752782844801,0.2,172.28,172.27,15.84740506]
[1752782845894,0.2,172.28,172.26,32.28]
[1752782846098,0.14636388,172.27,172.22,5.86651701]
[1752782846296,0.34636388,172.28,172.26,15.84740506]
[1752782846493,0.34636388,172.28,172.27,48.10740506]
[1752782846494,0.2,172.28,172.27,48.10740506]
[1752782846799,0.2,172.28,172.25,15.84740506]
[1752782847002,0.14636388,172.27,172.26,32.26]
[1752782847398,0.14636388,172.27,172.22,5.86651701]
[1752782847399,16.69376894,172.27,172.22,0.06]
[1752782847599,41.84740506,172.24,172.23,32.26]
[1752782847794,0.14636388,172.24,172.23,32.26]
[1752782848103,15.99376894,172.26,172.23,32.26]
[1752782848307,15.84740506,172.24,172.22,0.06]
[1752782848604,0.14636388,172.26,172.22,0.06]
[1752782848605,15.84740506,172.26,172.22,0.06]
[1752782848907,0.14636388,172.25,172.23,32.26]
[1752782849113,15.99376894,172.25,172.23,32.26]
[1752782849486,15.84740506,172.24,172.23,32.26]
[1752782849690,42.54740506,172.24,172.23,32.26]
[1752782849901,22.35325735,172.24,172.23,32.26]
[1752782850189,22.49962123,172.24,172.23,32.26]
[1752782850492,22.49962123,172.24,172.22,0.06]
[1752782850699,16.54740506,172.23,172.22,1e-08]
[1752782850997,33.33208903,172.23,172.22,1e-08]
[1752782851716,39.13827842,172.23,172.22,1e-08]
[1752782852414,15.84740506,172.16,172.15,32.26]
[1752782852636,16.54740506,172.16,172.07,15.84740506]
[1752782852813,15.84740506,172.13,172.1,32.26]
[1752782853113,0.14636388,172.12,172.1,32.26]
[1752782853610,5.81023763,172.11,172.1,32.26]
[1752782853812,21.65764269,172.11,172.1,32.26]
[1752782854211,22.31764269,172.11,172.1,32.26]
[1752782854512,22.31764269,172.11,172.07,32.26]
[1752782854813,15.84740506,172.09,172.07,32.26]
[1752782855018,0.14636388,172.08,172.07,32.26]
[1752782855414,15.99376894,172.08,172.04,0.2]
[1752782855587,26.0,172.06,172.05,32.26]
[1752782855911,0.14636388,172.1,172.05,53.91966893]
[1752782856116,0.14636388,172.12,172.09,15.84740506]
[1752782856323,0.14636388,172.12,172.1,32.26]
[1752782857015,15.84740506,172.11,172.1,32.26]
[1752782857192,0.66,172.12,172.1,32.26]
[1752782857516,15.99376894,172.11,172.07,32.26]
[1752782857691,5.81091289,172.09,172.07,32.26]
[1752782857890,0.14636388,172.08,172.07,32.26]
[1752782858111,15.99376894,172.08,172.07,32.26]
[1752782858308,0.14636388,172.08,172.07,32.26]
[1752782858615,16.65376894,172.08,172.07,32.26]
[1752782858816,15.99376894,172.08,172.04,0.2]
[1752782859018,15.99376894,172.08,172.04,32.46]
[1752782859319,15.84740506,172.05,172.04,32.46]
[1752782859507,15.99376894,172.05,172.04,0.2]
[1752782859692,21.80603281,172.05,172.04,0.2]
[1752782859893,22.46603281,172.05,172.04,0.2]
[1752782860323,5.95862775,172.05,172.04,0.2]
[1752782860511,21.80603281,172.05,172.04,0.2]
[1752782860995,22.46603281,172.05,172.04,0.2]
[1752782861191,6.61862775,172.05,172.04,0.2]
[1752782861429,21.80603281,172.05,172.04,0.2]
[1752782861913,22.46603281,172.05,172.04,0.2]
[1752782862314,6.61862775,172.05,172.04,0.2]
[1752782862622,0.14636388,172.05,172.04,0.2]
[1752782862918,22.31966893,172.05,172.04,0.2]
[1752782863418,15.84740506,172.0,171.97,32.26]
[1752782863618,15.99376894,171.99,171.97,32.26]
[1752782863829,5.96085882,171.99,171.97,32.26]
[1752782864011,21.80826388,171.99,171.97,32.26]
[1752782864205,6.62085882,171.99,171.93,32.26]
[1752782864418,5.96085882,171.99,171.93,32.26]
[1752782864721,0.14636388,171.99,171.98,15.84740506]
[1752782864927,26.0,172.04,171.98,15.84740506]
[1752782864928,0.14636388,172.03,171.98,32.94]
[1752782865150,15.84740506,172.01,171.98,32.26]
[1752782865425,0.14636388,172.03,171.99,0.68]
[1752782865626,0.14636388,172.03,172.0,0.68]
[1752782865819,21.80619264,172.05,172.0,16.52740506]
[1752782866019,5.95878758,172.05,171.98,32.94]
[1752782866214,15.84740506,172.03,171.98,48.78740506]
[1752782866406,15.84740506,171.99,171.91,0.06]
[1752782866607,0.14636388,171.98,171.92,48.78740506]